bitfinex/quotes_SOLUSD_20220119
["timestamp","ask_amount","ask_price","bid_price","bid_amount"]
[1642562393865,33.7818,140.56,140.48,0.25]
[1642562394063,0.25,140.55,140.48,0.25]
[1642562394863,0.25,140.55,140.47,13.7813]
[1642562395064,0.25,140.55,140.48,0.25]
[1642562395463,0.25,140.55,140.47,2.846]
[1642562395764,2.846,140.54,140.46,70.75]
[1642562396164,0.25,140.53,140.46,70.75]
[1642562396564,2.847,140.52,140.46,70.75]
[1642562396864,0.25,140.51,140.46,70.75]
[1642562398365,45.97611023,140.53,140.46,70.75]
[1642562400771,56.65491023,140.53,140.43,2.846]
[1642562400969,66.92491023,140.53,140.41,26.0221]
[1642562401171,24.3577,140.52,140.43,0.25]
[1642562401368,2.847,140.51,140.43,0.25]
[1642562401574,3.097,140.51,140.43,0.25]
[1642562402570,10.6808,140.5,140.43,0.25]
[1642562402769,0.25,140.49,140.43,0.25]
[1642562403174,2.847,140.51,140.43,0.25]
[1642562403470,0.25,140.5,140.43,73.847]
[1642562403968,0.25,140.5,140.43,74.107]
[1642562404371,0.25,140.5,140.43,71.26]
[1642562404670,0.25,140.51,140.43,71.26]
[1642562404872,0.25,140.51,140.44,6.0]
[1642562405272,0.25,140.51,140.45,0.25]
[1642562406170,0.25,140.51,140.44,0.51]
[1642562406372,0.25,140.51,140.44,0.25]
[1642562407871,0.25,140.51,140.42,2.847]
[1642562408171,0.25,140.51,140.44,0.25]
[1642562408973,0.25,140.51,140.43,0.25]
[1642562409172,0.25,140.51,140.42,10.6794]
[1642562409672,10.93,140.51,140.42,10.6794]
[1642562410075,27.2047,140.52,140.42,81.4294]
[1642562410273,27.2047,140.52,140.44,10.6779]
[1642562410474,58.8989,140.57,140.44,10.6779]
[1642562410475,2.847,140.54,140.44,10.6779]
[1642562410674,27.0285,140.56,140.46,70.75]
[1642562410875,24.1815,140.56,140.47,2.846]
[1642562411075,24.1815,140.56,140.47,9.096]
[1642562411275,24.1815,140.56,140.47,9.356]
[1642562411476,24.1815,140.56,140.48,4.10001112]
[1642562411676,24.1815,140.56,140.49,0.25]
[1642562411875,24.1815,140.56,140.49,71.0]
[1642562412075,2.846,140.57,140.49,77.0]
[1642562412376,23.72099859,140.58,140.5,2.846]
[1642562412774,0.25,140.57,140.51,0.25]
[1642562413374,23.72099859,140.58,140.51,0.25]
[1642562413576,1.13029859,140.58,140.52,2.846]
[1642562413778,36.9282,140.61,140.53,0.25]
[1642562413779,34.0822,140.61,140.53,0.25]
[1642562414376,10.27,140.61,140.53,21.15964914]
[1642562414577,2.845,140.64,140.54,73.595]
[1642562414778,10.27,140.65,140.55,10.919]
[1642562414982,10.27,140.65,140.56,73.594]
[1642562415178,6.0,140.64,140.57,0.25]
[1642562415380,10.27,140.65,140.57,0.25]
[1642562415579,45.11716571,140.64,140.57,0.25]
[1642562415779,45.36716571,140.64,140.57,0.25]
[1642562416380,45.36716571,140.64,140.56,2.844]
[1642562416583,2.844,140.63,140.54,2.844]
[1642562416779,0.25,140.62,140.54,8.844]
[1642562416979,2.845,140.61,140.54,2.844]
[1642562417180,0.25,140.6,140.54,2.844]
[1642562417782,0.25,140.6,140.53,22.6587598]
[1642562418184,0.25,140.6,140.54,0.25]
[1642562418383,0.25,140.61,140.54,0.25]
[1642562420483,13.5173,140.62,140.54,0.25]
[1642562420684,6.25,140.61,140.51,6.0]
[1642562420884,2.845,140.6,140.51,6.0]
[1642562421086,2.845,140.6,140.52,0.25]
[1642562421286,10.923,140.61,140.52,73.845]
[1642562421486,10.923,140.61,140.52,73.595]
[1642562421690,10.923,140.61,140.53,20.88174517]
[1642562421886,2.845,140.6,140.52,2.845]
[1642562422085,13.5184,140.6,140.52,2.845]
[1642562422286,13.21299886,140.6,140.53,41.0]
[1642562422487,0.25,140.59,140.52,2.845]
[1642562422887,35.81220508,140.59,140.52,2.845]
[1642562423088,46.48610508,140.59,140.52,2.845]
[1642562423288,56.75610508,140.59,140.52,2.845]
[1642562423487,6.0,140.58,140.52,2.845]
[1642562423689,2.845,140.58,140.52,2.845]
[1642562424293,70.0,140.56,140.45,2.01014168]
[1642562424490,70.0,140.56,140.44,2.01014168]
[1642562424491,13.116,140.55,140.44,2.01014168]
[1642562424697,21.1398939,140.55,140.42,2.01014168]
[1642562424888,1.7738939,140.54,140.4,2.01014168]
[1642562425088,53.92078614,140.53,140.39,2.01014168]
[1642562425289,53.92078614,140.53,140.38,2.847]
[1642562425290,60.33078614,140.53,140.38,2.01014168]
[1642562425488,1.7738939,140.52,140.37,2.01014168]
[1642562425689,13.368,140.51,140.37,2.01014168]
[1642562426023,21.1418939,140.51,140.36,2.01014168]
[1642562426390,19.368,140.51,140.36,2.01014168]
[1642562426590,19.368,140.51,140.37,8.01014168]
[1642562426794,44.3805598,140.5,140.38,22.54085561]
[1642562426992,13.118,140.49,140.38,22.54085561]
[1642562427190,13.368,140.49,140.38,22.54085561]
[1642562427894,13.368,140.49,140.38,2.848]
[1642562428096,10.6827,140.48,140.36,2.848]
[1642562428297,10.6827,140.48,140.34,2.01014168]
[1642562428298,13.368,140.47,140.34,2.01014168]
[1642562428501,13.368,140.47,140.35,6.0]
[1642562428697,13.368,140.47,140.34,6.0]
[1642562429098,42.31989954,140.46,140.35,27.3789144]
[1642562429401,3.098,140.45,140.35,27.6289144]
[1642562429599,13.7834,140.45,140.35,27.6289144]
[1642562430604,3.098,140.45,140.36,70.75]
[1642562430806,2.849,140.46,140.37,0.25]
[1642562431003,10.27,140.47,140.37,9.098]
[1642562431204,0.25,140.46,140.37,10.74629778]
[1642562431402,0.25,140.46,140.37,81.49629778]
[1642562431403,6.0,140.46,140.37,81.49629778]
[1642562431605,6.0,140.46,140.38,0.47574586]
[1642562432007,6.0,140.47,140.38,11.15764586]
[1642562432204,6.0,140.47,140.39,0.25]
[1642562432403,6.0,140.47,140.39,71.0]
[1642562432804,6.0,140.47,140.39,71.26]
[1642562434527,6.0,140.47,140.39,74.108]
[1642562437129,6.0,140.47,140.39,84.7892]
[1642562438327,42.8971441,140.48,140.39,84.7892]
[1642562439929,1.17957795,140.48,140.39,84.7892]
[1642562440329,1.17957795,140.48,140.39,86.17406649]
[1642562441733,1.17957795,140.48,140.41,10.6793]
[1642562441932,1.17957795,140.48,140.41,13.5273]
[1642562442133,1.17957795,140.48,140.42,0.25]
[1642562442538,1.17957795,140.48,140.42,23.3638274]
[1642562442735,1.17957795,140.48,140.42,34.3028274]
[1642562442936,1.17957795,140.48,140.42,34.0428274]
[1642562443338,1.17957795,140.48,140.43,2.847]
[1642562443735,1.17957795,140.48,140.44,0.25]
[1642562448941,1.17957795,140.48,140.43,2.847]
[1642562449144,1.17957795,140.48,140.44,0.25]
[1642562450239,1.17957795,140.48,140.43,0.25]
[1642562451042,1.17957795,140.48,140.42,81.6891]
[1642562451241,1.17957795,140.48,140.43,0.25]
[1642562451641,1.17957795,140.48,140.42,107.43862156]
[1642562452941,1.17957795,140.48,140.43,0.25]
[1642562453143,1.17957795,140.48,140.42,70.75]
[1642562453546,1.17957795,140.48,140.43,0.25]
[1642562453943,42.63366991,140.47,140.43,0.25]
[1642562454642,1.17957795,140.48,140.41,0.25]
[1642562455646,1.17957795,140.48,140.41,2.53801131]
[1642562456246,1.17957795,140.48,140.41,0.25]
[1642562458351,1.17957795,140.48,140.41,2.26014168]
[1642562458552,1.17957795,140.48,140.41,0.25]
[1642562459153,1.17957795,140.48,140.41,2.26014168]
[1642562461455,35.28533068,140.47,140.41,2.26014168]
[1642562461654,35.53533068,140.47,140.4,2.01014168]
[1642562462056,35.28533068,140.47,140.39,2.01014168]
[1642562462258,35.28533068,140.47,140.4,2.01014168]
[1642562462455,1.17957795,140.48,140.4,2.01014168]
[1642562463058,1.17957795,140.48,140.41,0.25]
[1642562463456,44.16844385,140.47,140.41,0.25]
[1642562465964,25.06207795,140.48,140.41,0.25]
[1642562466561,25.06207795,140.48,140.41,2.26014168]
[1642562467161,74.50725504,140.48,140.41,2.26014168]
[1642562470968,74.50725504,140.48,140.41,2.01014168]
[1642562471271,74.50725504,140.48,140.39,4.85814168]
[1642562471272,0.25,140.47,140.39,4.85814168]
[1642562471468,13.368,140.47,140.38,2.01014168]
[1642562472471,6.0,140.46,140.38,2.01014168]
[1642562472670,2.848,140.45,140.38,2.01014168]
[1642562472871,3.098,140.45,140.38,2.01014168]
[1642562473070,45.51093247,140.45,140.38,2.01014168]
[1642562474898,3.098,140.45,140.38,2.01014168]
[1642562476500,0.25,140.45,140.38,2.01014168]
[1642562476900,49.6034,140.46,140.38,2.01014168]
[1642562477099,49.6034,140.46,140.39,0.25]
[1642562478502,49.6034,140.46,140.38,4.85814168]
[1642562478701,10.9348,140.45,140.38,4.85814168]
[1642562478900,10.9348,140.45,140.38,2.848]
[1642562478901,2.848,140.44,140.38,2.848]
[1642562479300,0.25,140.43,140.38,2.848]
[1642562479502,42.26968255,140.43,140.38,2.848]
[1642562479701,42.26968255,140.43,140.35,72.76014168]
[1642562480705,45.11868255,140.43,140.35,72.76014168]
[1642562482004,42.26968255,140.43,140.35,72.76014168]
[1642562482203,2.849,140.45,140.36,0.25]
[1642562482418,10.6846,140.45,140.36,5.10914168]
[1642562482815,10.6846,140.45,140.36,5.36914168]
[1642562483321,35.6984849,140.44,140.36,80.7221463]
[1642562483521,0.25,140.44,140.36,91.4059463]
[1642562483718,0.25,140.45,140.36,88.5569463]
[1642562484117,0.25,140.45,140.37,2.01014168]
[1642562484317,0.25,140.45,140.38,0.25]
[1642562484518,42.39682141,140.45,140.38,0.25]
[1642562486957,0.25,140.45,140.38,0.25]
[1642562487555,49.6032,140.46,140.38,0.25]
[1642562487957,96.91905159,140.46,140.38,0.25]
[1642562488156,0.25,140.45,140.38,0.25]
[1642562490458,0.25,140.45,140.38,71.0]
[1642562490656,96.91905159,140.46,140.38,71.0]
[1642562490857,86.23525159,140.46,140.38,73.27014168]
[1642562491260,0.25,140.45,140.38,73.27014168]
[1642562491458,86.23525159,140.46,140.38,73.27014168]
[1642562491859,80.23525159,140.46,140.38,73.27014168]
[1642562492058,32.9194,140.46,140.38,83.95254168]
[1642562492259,32.9194,140.46,140.39,4.85814168]
[1642562492460,32.9194,140.46,140.39,75.60814168]
[1642562492661,32.9194,140.46,140.4,0.25]
[1642562493161,32.9194,140.46,140.4,23.20183729]
[1642562493662,32.9194,140.46,140.4,0.25]
[1642562495964,73.07774096,140.46,140.4,0.25]
[1642562498366,32.9194,140.46,140.4,0.25]
[1642562498968,32.9194,140.46,140.4,2.26014168]
[1642562499569,32.9194,140.46,140.41,7.93121446]
[1642562499769,32.9194,140.46,140.42,0.25]
[1642562500171,24.21797795,140.48,140.42,0.25]
[1642562501469,49.02367795,140.48,140.42,0.25]
[1642562501674,49.02367795,140.48,140.41,0.25]
[1642562504274,49.02367795,140.48,140.4,107.23932363]
[1642562505274,49.02367795,140.48,140.4,83.70094168]
[1642562505774,49.02367795,140.48,140.41,0.25]
[1642562506275,49.02367795,140.48,140.41,24.55069509]
[1642562506474,49.02367795,140.48,140.41,30.55069509]
[1642562506674,49.02367795,140.48,140.41,30.81069509]
[1642562506876,49.02367795,140.48,140.42,70.75]
[1642562507279,49.02367795,140.48,140.43,0.25]
[1642562508278,1.17957795,140.48,140.43,0.25]
[1642562508482,1.17957795,140.48,140.43,10.9285]
[1642562508679,1.17957795,140.48,140.44,70.75]
[1642562509081,1.17957795,140.48,140.45,0.25]
[1642562509282,1.28868835,140.55,140.45,0.25]
[1642562509487,48.3994531,140.55,140.45,11.8140289]
[1642562509684,48.3994531,140.55,140.45,6.25]
[1642562509882,2.846,140.54,140.43,12.28014168]
[1642562510087,24.1406,140.53,140.43,2.847]
[1642562510284,2.846,140.54,140.43,2.847]
[1642562510484,1.28868835,140.55,140.44,2.01014168]
[1642562510684,1.28868835,140.55,140.44,9.39944066]
[1642562510884,1.28868835,140.55,140.47,10.6751]
[1642562511083,1.28868835,140.55,140.48,6.0]
[1642562511284,1.28868835,140.55,140.48,102.27761847]
[1642562511485,1.28868835,140.55,140.48,102.53761847]
[1642562511685,1.28868835,140.55,140.48,103.92691745]
[1642562512087,1.28868835,140.55,140.48,101.08091745]
[1642562512514,1.28868835,140.55,140.48,111.75581745]
[1642562513414,1.28868835,140.55,140.49,2.846]
[1642562513615,1.28868835,140.55,140.5,6.0]
[1642562513915,1.28868835,140.55,140.5,6.25]
[1642562514920,2.846,140.59,140.5,7.89929898]
[1642562515117,23.3557,140.61,140.51,2.845]
[1642562515316,23.3557,140.61,140.52,0.25]
[1642562515516,6.0,140.6,140.53,2.845]
[1642562515716,6.0,140.6,140.54,0.25]
[1642562515919,6.0,140.6,140.54,6.25]
[1642562516216,6.0,140.6,140.54,6.51]
[1642562516917,6.0,140.6,140.54,6.25]
[1642562517117,6.0,140.6,140.54,6.51]
[1642562519224,6.0,140.6,140.54,77.26]
[1642562520219,6.0,140.6,140.54,77.0]
[1642562520524,6.0,140.6,140.54,87.6705]
[1642562520720,6.0,140.6,140.54,87.9305]
[1642562521924,6.0,140.6,140.54,95.17963021]
[1642562522323,6.0,140.6,140.54,87.9305]
[1642562522522,23.3557,140.61,140.54,87.9305]
[1642562522921,22.8557,140.61,140.54,87.9305]
[1642562523523,22.8557,140.61,140.54,87.6705]
[1642562523724,22.8557,140.61,140.58,0.27869939]
[1642562533336,0.25,140.6,140.58,0.27869939]
[1642562533537,6.31439994,140.6,140.58,0.27869939]
[1642562534437,35.38233738,140.59,140.58,0.27869939]
[1642562534843,35.63233738,140.59,140.58,0.27869939]
[1642562541770,35.63233738,140.59,140.52,6.25]
[1642562542670,35.63233738,140.59,140.52,6.0]
[1642562543368,37.61904608,140.59,140.52,6.0]
[1642562543670,37.61904608,140.59,140.51,70.75]
[1642562543967,37.61904608,140.59,140.52,0.25]
[1642562543968,0.25,140.58,140.52,0.25]
[1642562546067,0.25,140.58,140.51,0.25]
[1642562546470,2.2367087,140.58,140.51,0.25]
[1642562547470,2.2367087,140.58,140.49,0.25]
[1642562548475,12.9115087,140.58,140.49,0.25]
[1642562549076,1.14868247,140.56,140.48,2.846]
[1642562549276,10.52,140.55,140.48,2.846]
[1642562549476,21.3527087,140.55,140.48,2.846]
[1642562550077,39.37758997,140.54,140.48,2.846]
[1642562550277,50.05608997,140.54,140.48,2.846]
[1642562550778,0.25,140.53,140.44,2.846]
[1642562551181,2.847,140.52,140.42,2.01014168]
[1642562551379,10.6803,140.51,140.41,12.68984168]
[1642562551579,45.70299802,140.5,140.41,39.51995224]
[1642562551779,0.25,140.49,140.43,1.38578878]
[1642562552378,10.6803,140.51,140.44,0.25]
[1642562552578,23.7962,140.53,140.44,3.097]
[1642562552778,0.25,140.52,140.44,4.48278878]
[1642562552979,3.097,140.52,140.44,1.38578878]
[1642562553380,42.89287331,140.51,140.44,1.38578878]
[1642562554180,0.25,140.5,140.42,4.23278878]
[1642562554380,0.25,140.5,140.43,0.25]
[1642562554582,0.25,140.5,140.42,2.847]
[1642562554779,2.847,140.49,140.42,2.847]
[1642562555180,0.25,140.48,140.42,2.847]
[1642562555379,2.847,140.47,140.42,2.847]
[1642562555783,0.25,140.46,140.42,2.847]
[1642562557180,0.25,140.46,140.4,1.38578878]
[1642562557382,0.25,140.46,140.41,0.25]
[1642562558984,5.79685225,140.47,140.41,0.25]
[1642562559184,0.25,140.46,140.41,0.25]
[1642562559787,2.94985225,140.45,140.41,0.25]
[1642562560187,40.56386655,140.45,140.41,0.25]
[1642562560992,0.25,140.44,140.38,4.23032942]
[1642562561194,0.25,140.44,140.38,1.38232942]
[1642562561393,0.25,140.44,140.36,1.38232942]
[1642562561591,8.219,140.44,140.34,14.83202942]
[1642562561790,48.8359253,140.42,140.35,6.0]
[1642562562191,0.25,140.41,140.35,6.0]
[1642562563391,2.94985225,140.4,140.35,6.0]
[1642562563592,2.94985225,140.4,140.36,0.25]
[1642562563792,2.94985225,140.4,140.35,6.0]
[1642562564191,2.94985225,140.4,140.36,0.25]
[1642562566591,2.94985225,140.41,140.36,0.25]
[1642562567290,2.94985225,140.41,140.35,6.0]
[1642562567494,0.25,140.4,140.35,6.0]
[1642562567994,49.33766236,140.4,140.35,6.0]
[1642562568492,0.25,140.4,140.35,6.0]
[1642562569493,46.56319411,140.4,140.35,6.0]
[1642562569993,2.94985225,140.39,140.35,6.0]
[1642562570795,2.94985225,140.39,140.34,10.6017]
[1642562570993,2.94985225,140.39,140.35,0.25]
[1642562571196,2.94985225,140.39,140.35,6.25]
[1642562572099,2.94985225,140.39,140.35,6.0]
[1642562572336,0.25,140.38,140.35,6.0]
[1642562572501,2.94985225,140.39,140.35,6.0]
[1642562572703,0.25,140.38,140.32,1.38232942]
[1642562572901,3.1,140.38,140.3,38.00902942]
[1642562573102,3.1,140.38,140.31,6.0]
[1642562573305,3.1,140.38,140.32,0.25]
[1642562573504,2.85,140.38,140.31,0.25]
[1642562573805,23.8663,140.4,140.31,25.91714736]
[1642562574003,23.8663,140.4,140.32,1.38232942]
[1642562574202,23.8663,140.4,140.33,0.25]
[1642562574803,23.8663,140.4,140.34,1.38232942]
[1642562575002,23.8663,140.4,140.34,4.23132942]
[1642562575202,23.8663,140.4,140.35,0.25]
[1642562575605,23.8663,140.4,140.35,5.28743495]
[1642562576003,10.27,140.43,140.35,5.28743495]
[1642562576004,2.94985225,140.39,140.35,5.28743495]
[1642562577204,2.94985225,140.39,140.35,8.13643495]
[1642562577606,2.94985225,140.39,140.35,18.82113495]
[1642562577805,2.94985225,140.39,140.35,20.46346437]
[1642562578505,2.94985225,140.39,140.35,15.42602942]
[1642562579508,2.94985225,140.39,140.35,15.16602942]
[1642562579707,2.94985225,140.39,140.35,3.099]
[1642562579906,47.35655461,140.4,140.35,3.099]
[1642562580308,2.94985225,140.41,140.35,3.099]
[1642562581614,2.94985225,140.41,140.35,0.25]
[1642562583212,2.94985225,140.41,140.39,0.27869939]
[1642562583413,6.06439994,140.4,140.39,0.27869939]
[1642562584312,9.01425219,140.4,140.39,0.27869939]
[1642562587115,2.94985225,140.4,140.39,0.27869939]
[1642562587537,2.94985225,140.44,140.39,0.27869939]
[1642562587836,9.19985225,140.44,140.39,0.27869939]
[1642562589940,2.848,140.43,140.39,0.27869939]
[1642562590140,48.25541516,140.42,140.39,0.27869939]
[1642562590341,54.25541516,140.42,140.39,0.27869939]
[1642562590542,48.25541516,140.42,140.39,0.27869939]
[1642562590742,3.28219997,140.41,140.39,0.27869939]
[1642562590940,6.13119997,140.41,140.39,0.27869939]
[1642562591442,3.03219997,140.4,140.39,0.27869939]
[1642562592542,3.28219997,140.4,140.39,0.27869939]
[1642562594145,6.23205222,140.4,140.39,0.27869939]
[1642562595046,12.23205222,140.4,140.39,0.27869939]
[1642562595545,6.23205222,140.4,140.39,0.27869939]
[1642562595947,12.23205222,140.4,140.39,0.27869939]
[1642562596647,6.23205222,140.4,140.39,0.27869939]
[1642562596845,12.23205222,140.4,140.39,0.27869939]
[1642562597247,6.23205222,140.4,140.39,0.27869939]
[1642562597549,12.23205222,140.4,140.39,0.27869939]
[1642562598148,6.23205222,140.4,140.39,0.27869939]
[1642562598647,12.23205222,140.4,140.39,0.27869939]
[1642562599047,6.23205222,140.4,140.39,0.27869939]
[1642562599246,12.23205222,140.4,140.39,0.27869939]
[1642562600047,6.23205222,140.4,140.39,0.27869939]
[1642562600249,12.23205222,140.4,140.39,0.27869939]
[1642562601049,6.23205222,140.4,140.39,0.00869939]
[1642562601248,12.23205222,140.4,140.39,0.00869939]
[1642562601449,45.76105222,140.4,140.39,0.00869939]
[1642562601748,45.76105222,140.4,140.32,2.849]
[1642562601749,70.0,140.39,140.32,2.849]
[1642562602047,56.33307562,140.38,140.32,2.849]
[1642562602250,10.691,140.37,140.28,2.01014168]
[1642562602449,44.573,140.37,140.27,2.01014168]
[1642562602648,16.52,140.36,140.26,2.01014168]
[1642562602847,2.85,140.35,140.24,12.88444168]
[1642562603050,6.0,140.34,140.24,12.88444168]
[1642562603348,51.66920553,140.33,140.24,10.8743]
[1642562603552,51.66920553,140.33,140.24,10.3743]
[1642562603755,0.25,140.32,140.25,0.25]
[1642562603951,0.25,140.32,140.23,2.01014168]
[1642562603952,2.851,140.31,140.24,0.25]
[1642562604154,45.89637116,140.3,140.24,0.25]
[1642562604353,46.14637116,140.3,140.23,0.25]
[1642562605753,2.94985225,140.29,140.23,0.25]
[1642562606454,2.94985225,140.29,140.24,2.851]
[1642562606654,2.94985225,140.29,140.24,73.601]
[1642562606856,2.94985225,140.29,140.25,0.25]
[1642562608058,2.94985225,140.29,140.26,2.851]
[1642562608257,2.94985225,140.31,140.26,2.851]
[1642562608458,2.94985225,140.31,140.27,0.25]
[1642562608657,2.94985225,140.31,140.25,10.9425]
[1642562608861,2.94985225,140.31,140.26,2.851]
[1642562611365,2.94985225,140.31,140.25,102.24502543]
[1642562611564,2.94985225,140.31,140.26,0.25]
[1642562612766,2.94985225,140.31,140.26,3.101]
[1642562613790,2.94985225,140.31,140.26,0.25]
[1642562614790,2.94985225,140.31,140.25,84.5535]
[1642562615092,2.94985225,140.31,140.25,10.9525]
[1642562615288,2.94985225,140.31,140.25,0.26]
[1642562615690,2.94985225,140.31,140.24,83.08562942]
[1642562616090,2.94985225,140.31,140.25,0.25]
[1642562619797,2.94985225,140.31,140.25,10.9425]
[1642562620199,2.94985225,140.31,140.25,11.2025]
[1642562620596,2.94985225,140.31,140.26,2.851]
[1642562620797,2.94985225,140.31,140.27,0.25]
[1642562621300,20.9623,140.35,140.27,0.25]
[1642562621501,2.94985225,140.32,140.27,0.25]
[1642562621902,2.94985225,140.32,140.27,1.51720385]
[1642562622300,2.94985225,140.32,140.27,1.77720385]
[1642562623503,2.94985225,140.32,140.27,11.2011]
[1642562623903,2.94985225,140.34,140.27,81.9511]
[1642562626910,2.94985225,140.34,140.27,11.2011]
[1642562627107,2.94985225,140.34,140.28,6.0]
[1642562627309,2.94985225,140.34,140.29,0.25]
[1642562627509,2.94985225,140.34,140.27,10.9511]
[1642562628110,2.94985225,140.34,140.28,6.0]
[1642562628310,2.94985225,140.34,140.28,9.11]
[1642562628910,2.94985225,140.34,140.29,0.25]
[1642562631514,2.94985225,140.34,140.29,6.25]
[1642562631814,2.94985225,140.34,140.29,6.51]
[1642562632442,2.94985225,140.34,140.29,14.69390298]
[1642562633045,2.94985225,140.34,140.29,8.69390298]
[1642562633443,2.94985225,140.34,140.29,19.38330298]
[1642562633644,2.94985225,140.34,140.3,4.86014168]
[1642562633845,2.94985225,140.34,140.3,11.12014168]
[1642562634044,5.225e-05,140.34,140.32,2.01014168]
[1642562634244,113.4906,140.43,140.34,38.0]
[1642562634448,36.6298,140.43,140.34,70.75]
[1642562634745,36.6298,140.43,140.35,0.25]
[1642562635043,36.6298,140.43,140.35,6.25]
[1642562635243,36.6298,140.43,140.35,29.4171986]
[1642562636246,36.6298,140.43,140.35,100.1671986]
[1642562636446,36.6298,140.43,140.35,110.8520986]
[1642562636646,2.85,140.43,140.35,111.1120986]
[1642562636845,2.85,140.43,140.36,2.849]
[1642562637046,2.85,140.43,140.37,6.0]
[1642562637246,2.85,140.43,140.38,73.599]
[1642562637651,2.85,140.43,140.39,6.25]
[1642562637852,2.85,140.43,140.4,2.848]
[1642562638049,2.85,140.43,140.41,6.0]
[1642562638251,1.9867087,140.51,140.42,3.098]
[1642562638448,30.5435684,140.53,140.42,4.49362511]
[1642562638648,25.7098597,140.53,140.43,6.0]
[1642562638847,25.7098597,140.53,140.44,2.847]
[1642562639047,38.64461461,140.52,140.45,6.0]
[1642562639247,38.64461461,140.52,140.46,0.25]
[1642562640451,38.64461461,140.52,140.46,10.9269]
[1642562640652,38.64461461,140.52,140.47,6.0]
[1642562641053,0.25,140.51,140.44,2.847]
[1642562641254,3.097,140.51,140.44,2.847]
[1642562641455,27.1825,140.51,140.44,2.847]
[1642562641759,6.0,140.5,140.44,2.847]
[1642562641954,2.847,140.49,140.4,2.847]
[1642562642153,61.13208766,140.49,140.4,2.847]
[1642562642354,61.13208766,140.49,140.41,10.6807]
[1642562642556,61.13208766,140.49,140.41,10.9307]
[1642562643358,61.13208766,140.49,140.41,0.25]
[1642562643561,71.81378766,140.49,140.41,0.25]
[1642562644256,71.56378766,140.49,140.41,0.25]
[1642562645461,0.25,140.48,140.41,0.25]
[1642562645661,71.56378766,140.49,140.41,0.25]
[1642562645863,0.25,140.48,140.41,0.25]
[1642562646460,6.25,140.48,140.41,0.25]
[1642562648564,2.848,140.47,140.41,0.25]
[1642562648764,9.098,140.48,140.41,0.25]
[1642562650065,6.25,140.48,140.41,0.25]
[1642562651166,9.098,140.48,140.41,0.25]
[1642562651567,8.848,140.48,140.41,0.25]
[1642562652266,6.0,140.48,140.41,3.098]
[1642562653470,6.0,140.48,140.41,0.25]
[1642562654469,8.848,140.48,140.41,0.25]
[1642562654671,19.5308,140.48,140.39,8.848]
[1642562654877,10.52,140.47,140.36,2.848]
[1642562655069,8.848,140.46,140.36,2.848]
[1642562655269,10.52,140.45,140.36,2.848]
[1642562655471,2.848,140.44,140.36,2.848]
[1642562655669,39.00183345,140.43,140.36,2.848]
[1642562655870,2.849,140.42,140.36,2.848]
[1642562656871,2.849,140.42,140.37,0.25]
[1642562657072,6.0,140.44,140.37,0.25]
[1642562657272,35.8331,140.45,140.37,0.25]
[1642562657473,0.25,140.43,140.37,0.25]
[1642562658175,0.25,140.43,140.36,0.25]
[1642562659577,44.58867888,140.44,140.36,0.25]
[1642562659776,0.25,140.43,140.36,0.25]
[1642562660680,0.25,140.43,140.34,13.535]
[1642562660878,23.9135,140.43,140.34,13.535]
[1642562661082,23.9135,140.43,140.35,0.25]
[1642562661278,8.849,140.42,140.35,0.25]
[1642562661877,10.6885,140.41,140.35,0.25]